[Event "1st Serbian League 2022"]
[Site "Vrnjacka Banja"]
[Date "2022.09.26"]
[Round "7.1"]
[White "Demchenko, Anton"]
[Black "Yilmazyerli, Mert"]
[Result "1-0"]
[ECO "B30"]
[WhiteElo "2645"]
[BlackElo "2533"]
[Annotator "TA"]
[PlyCount "77"]
[EventDate "2022.09.20"]
[EventType "team-tourn"]
[EventCountry "SRB"]
[SourceTitle "playchess.com"]
[Source "ChessBase"]
[SourceQuality "1"]
[TimeControl "40/5400+30:1800+30"]

{[%evp 9,77,9,20,4,10,0,43,44,46,31,58,55,57,58,60,72,67,73,66,77,53,72,118,89,80,88,92,95,104,105,106,76,58,63,69,76,81,62,85,62,108,99,94,99,92,102,102,88,97,44,61,52,133,132,141,134,144,131,131,35,138,144,646,620,3101,2535,2541,2189,2157,2059]} 1. e4 {[%emt 0:00:03]} c5 {[%emt 0:04:35]} 2. Nf3 {[%emt 0:00:06]} Nc6 {[%emt 0:00:08]} 3. Bb5 {[%emt 0:00:13]} e6 {[%emt 0:00:09]} 4. Bxc6 {[%emt 0:00:24]} bxc6 {[%emt 0:00:06]} 5. d3 {[%emt 0:00:08]} Ne7 {[%emt 0:00:43]} 6. Nbd2 {[%emt 0:00:08] B30: Sicilian: 2...Nc6 3 Bb5, lines without ...g6.} d6 {[%emt 0:02:45]} 7. e5 {[%emt 0:00:12]} Nf5 {[%emt 0:01:03]} 8. exd6 {[%emt 0:00:23] White is slightly better.} Bxd6 {[%emt 0:00:26]} 9. Ne4 {[%emt 0:00:40]} Be7 {[%emt 0:02:29]} 10. Ne5 {[%emt 0:01:07]} Qc7 {[%emt 0:01:56]} 11. Bf4 {[%emt 0:00:48][%cal Oe5g6] Hoping for Ng6!} Qb7 {[%emt 0:01:18]} 12. Nc4 {[%emt 0:00:13] Black must now prevent g4. Pair of Knights!} O-O {[%emt 0:02:24] [#]} 13. Qd2 $146 {[%emt 0:00:21]} ({Predecessor:} 13. O-O f6 14. b3 e5 15. Bc1 Be6 16. Ba3 Qb5 17. Ne3 Nxe3 18. fxe3 Qa5 19. Bb2 {½-½ (47) Gopal,G (2593)-Yilmazyerli,M (2520) Kavala 2022}) 13... f6 {[%emt 0:15:32]} 14. Be3 {[%emt 0:00:31]} Nd4 {[%emt 0:03:21]} 15. f4 {[%emt 0:08:45] Inhibits e5.} e5 {[%emt 0:03:03]} (15... f5 $142 16. Ng3 Qc7) 16. O-O-O {[%emt 0:06:32]} exf4 {[%emt 0:06:59]} 17. Bxf4 {[%emt 0:01:26]} Be6 {[%emt 0:00:25]} 18. c3 {[%emt 0:12:03]} Bxc4 {[%emt 0:13:53]} 19. dxc4 {[%emt 0:00:43]} Ne6 {[%emt 0:00:05]} 20. Nd6 {[%emt 0:03:39]} Bxd6 {[%emt 0:02:19]} 21. Bxd6 {[%emt 0:00:05]} Rfe8 {[%emt 0:01:07]} 22. Rhe1 {[%emt 0:06:00]} Rad8 {[%emt 0:03:26]} 23. Qc2 {[%emt 0:07:32]} Qf7 {[%emt 0:04:22][%cal Oe6d4]} 24. Qf5 {[%emt 0:07:49] White has more active pieces.} Ng5 {[%emt 0:11:14]} (24... Qg6 $14 {is superior.} 25. g4 Kf7) 25. h4 {[%emt 0:10:50]} (25. Bxc5 $6 Rxd1+ 26. Rxd1 Qxc4 $11) (25. Qxc5 Ne4 26. Qxc6 Rxd6 27. Rxd6 Nxd6 28. Rxe8+ Nxe8 $17) 25... g6 {[%emt 0:08:22]} (25... Rxe1 $2 26. Rxe1 g6 27. Qxc5 $18) 26. Rxe8+ {[%emt 0:04:57]} ({Not} 26. Qxc5 Ne4 27. Qxc6 Rxd6 28. Rxd6 Nxd6 29. Rxe8+ Nxe8 $17) 26... Qxe8 {[%emt 0:01:37]} 27. Qf4 {[%emt 0:13:13] Inhibits Qe3+.} (27. Qxc5 $2 Ne4 28. Re1 Nxc5 $19) ({Don't do} 27. Qxf6 Qe3+ 28. Kb1 Nf7 $14) 27... Ne4 {[%emt 0:01:01]} 28. Re1 $1 {[%emt 0:00:21]} f5 {[%emt 0:02:07] [#]} 29. Bxc5 {[%emt 0:02:15]} (29. Bc7 $1 $16 {[%cal Rc7d8]} Rd7 30. g4) 29... Qf7 {[%emt 0:00:19]} 30. Be3 {[%emt 0:00:43]} Qxc4 {[%emt 0:00:45] [#]} ({Better is} 30... Re8 $14) 31. Qc7 $1 $16 {[%emt 0:01:06] Threatening mate with Bh6.} Qd5 {[%emt 0:02:55]} 32. Qxa7 {[%emt 0:02:13]} c5 {[%emt 0:01:32][%cal Of5f4]} 33. Qe7 {[%emt 0:03:47]} Rd7 {[%emt 0:00:37]} 34. Qe8+ {[%emt 0:00:07]} Kg7 {[%emt 0:00:02]} 35. Bf4 $40 {[%emt 0:00:06][%cal Og2g4][%mdl 128] White wants a kill.} Qd3 $2 {[%emt 0:03:59][%mdl 8192] This move loses the game for Black.} (35... Qf7 $16 36. Qxf7+ Kxf7) 36. g4 $18 {[%emt 0:02:52] White is clearly winning.} Nf6 {[%emt 0:00:49] [#]} 37. Bh6+ $1 {[%emt 0:01:11][%mdl 512]} Kxh6 {[%emt 0:00:06]} 38. Qf8+ {[%emt 0:00:04]} Rg7 {[%emt 0:00:05]} 39. Qxf6 {[%emt 0:00:03] Weighted Error Value: White=0.06 (flawless) /Black=0.30} 1-0

[Event "1st Serbian League 2022"]
[Site "Vrnjacka Banja"]
[Date "2022.09.26"]
[Round "7.2"]
[White "Gokerkan, Cem Kaan"]
[Black "Atalik, Suat"]
[Result "1/2-1/2"]
[ECO "C42"]
[WhiteElo "2465"]
[BlackElo "2436"]
[Annotator "TA"]
[PlyCount "110"]
[EventDate "2022.09.20"]
[EventType "team-tourn"]
[EventCountry "SRB"]
[SourceTitle "playchess.com"]
[Source "ChessBase"]
[SourceQuality "1"]
[TimeControl "40/5400+30:1800+30"]

{[%evp 17,110,25,32,4,12,8,30,6,34,24,30,-3,-8,-5,-3,-5,25,8,27,18,20,-8,31,14,28,0,6,0,11,10,30,27,52,32,32,32,60,52,65,73,156,168,267,252,253,209,204,185,179,148,143,121,127,124,129,56,48,43,54,16,21,7,7,0,7,0,0,0,0,0,0,0,0,0,0,-14,0,-14,-14,-20,-14,-14,-14,-14,-14,-14,-14,-14,0,0,0,-14,0,0,0]} 1. e4 {[%emt 0:01:28]} e5 {[%emt 0:00:21]} 2. Nf3 {[%emt 0:00:05]} Nf6 {[%emt 0:00:18]} 3. Nxe5 {[%emt 0:01:04]} d6 {[%emt 0:00:09]} 4. Nf3 {[%emt 0:00:05]} Nxe4 {[%emt 0:00:06]} 5. d4 {[%emt 0:00:04]} d5 {[%emt 0:00:38]} 6. Bd3 {[%emt 0:00:05]} Bd6 {[%emt 0:02:59]} 7. O-O {[%emt 0:00:44]} O-O {[%emt 0:00:07]} 8. Re1 {[%emt 0:00:06]} Bf5 {[%emt 0:02:09]} 9. c4 {[%emt 0:19:45]} c6 {[%emt 0:02:18]} 10. Qc2 {[%emt 0:08:31] C42: Petroff Defence: 3 Nxe5 and unusual White 3rd moves.} Bg6 {[%emt 0:09:25]} 11. c5 {[%emt 0:08:33]} Bc7 {[%emt 0:01:09]} 12. Nc3 {[%emt 0:00:04][%cal Rc3e4] White has an edge.} Na6 {[%emt 0:17:39] Hoping for ...Nb4.} 13. a3 {[%emt 0:02:33][%cal Rc3e4] Prevents Nb4.} ({But not} 13. Bxe4 dxe4 14. Rxe4 (14. Nxe4 Re8 $17) 14... Qd7 $15) (13. Nxe4 $2 Nb4 14. Bg5 (14. Nf6+ $2 Qxf6 15. Bxg6 Nxc2 $19) 14... f6 $19) 13... Re8 {[%emt 0:00:08]} 14. Bg5 {[%emt 0:09:02]} Nxg5 {[%emt 0:03:30] [#]} 15. Rxe8+ $146 {[%emt 0:00:22]} ({Predecessor:} 15. Nxg5 Qe7 16. Nf3 {½-½ (16) Mista,A (2569)-Landa,K (2613) Mulhouse 2011}) 15... Qxe8 {[%emt 0:00:06]} 16. Nxg5 {[%emt 0:00:03]} Qe7 {[%emt 0:00:40]} 17. Nf3 {[%emt 0:02:33]} Re8 {[%emt 0:00:34]} 18. Bxg6 {[%emt 0:04:40]} hxg6 {[%emt 0:01:37]} 19. Qd2 {[%emt 0:07:40]} f6 {[%emt 0:56:07]} 20. Re1 {[%emt 0:05:38]} Qf7 {[%emt 0:00:00]} 21. h4 {[%emt 0:05:54]} Rxe1+ {[%emt 0:00:00]} 22. Qxe1 {[%emt 0:00:32]} Nb8 {[%emt 0:00:00]} 23. b4 {[%emt 0:01:12]} a6 {[%emt 0:00:00]} 24. a4 {[%emt 0:03:05]} Kf8 {[%emt 0:00:00]} 25. Kf1 {[%emt 0:01:10]} Qe8 {[%emt 0:00:00]} 26. Qb1 {[%emt 0:00:22][%cal Oh4h5]} Nd7 {[%emt 0:00:00]} 27. b5 {[%emt 0:02:52]} axb5 {[%emt 0:00:00]} 28. axb5 {[%emt 0:00:07]} Ba5 {[%emt 0:00:00]} (28... Kg8 $142) 29. Ne2 $1 $16 {[%emt 0:00:32]} Qe4 {[%emt 0:00:00]} (29... Ke7 $142 30. Qa1 Bc7) 30. Qa2 $18 {[%emt 0:01:21]} Bb4 {[%emt 0:00:00]} 31. Qb3 {[%emt 0:00:39] Prevents Qd3.} ({Resist} 31. bxc6 bxc6 32. Kg1 Nxc5 33. dxc5 Bxc5 34. Qa8+ Qe8 $18) 31... Ba5 {[%emt 0:00:00]} 32. Ng3 {[%emt 0:01:54]} Qf4 {[%emt 0:00:00]} 33. Qa3 {[%emt 0:00:47] Prevents Qc1+.} Bd8 {[%emt 0:00:00]} 34. Ne2 {[%emt 0:02:00]} Qb8 {[%emt 0:01:43]} 35. g3 {[%emt 0:00:34]} Kf7 {[%emt 0:00:34] [#]} 36. Nd2 {[%emt 0:05:27] White is more active.} ({White should play} 36. bxc6 $1 $16 bxc6 37. Qa6) 36... Nf8 $14 {[%emt 0:01:01]} 37. b6 {[%emt 0:04:23] Threatens to win with Qa7.} Ne6 {[%emt 0:00:08]} 38. Nb3 {[%emt 0:00:52] Black must now prevent Qa7.} Be7 {[%emt 0:00:13] The position is equal.} 39. Qa2 {[%emt 0:01:25]} g5 {[%emt 0:00:42]} 40. h5 {[%emt 0:01:17]} Qc8 {[%emt 0:03:05]} 41. Kg2 {[%emt 0:06:28]} f5 {[%emt 0:01:17]} 42. Qc2 {[%emt 0:03:05]} Bf6 {[%emt 0:00:07]} 43. Kf1 {[%emt 0:07:13]} ({Not} 43. Qxf5 $2 {[#]} Nf4+ $1 {[%mdl 512]} 44. Qxf4 gxf4 $19) 43... Nf8 {[%emt 0:02:59]} 44. g4 {[%emt 0:03:18]} f4 {[%emt 0:02:03]} 45. Qf5 {[%emt 0:01:53]} Qa8 {[%emt 0:01:53]} 46. Qd3 {[%emt 0:09:42]} Qa4 {[%emt 0:02:46]} 47. Ke1 {[%emt 0:00:26]} Ne6 {[%emt 0:00:39]} 48. f3 {[%emt 0:00:06]} Ke7 {[%emt 0:04:47]} 49. Kd2 {[%emt 0:00:14]} Kd7 {[%emt 0:01:29]} 50. Qc3 {[%emt 0:01:40]} Kc8 {[%emt 0:02:44]} 51. Qd3 {[%emt 0:01:09]} Qb4+ {[%emt 0:03:27]} 52. Qc3 {[%emt 0:00:30]} Qc4 {[%emt 0:01:05]} 53. Qd3 {[%emt 0:00:23]} Qb4+ {[%emt 0:02:46]} 54. Qc3 {[%emt 0:00:01]} Qa4 {[%emt 0:02:18]} 55. Qd3 {[%emt 0:00:05]} Qb4+ {[%emt 0:00:21] White really could win this.  Weighted Error Value: White=0.10 (very precise) /Black=0.09 (flawless)} 1/2-1/2

[Event "1st Serbian League 2022"]
[Site "Vrnjacka Banja"]
[Date "2022.09.26"]
[Round "7.3"]
[White "Vucinic, Gojko"]
[Black "Arsovic, Goran"]
[Result "1/2-1/2"]
[ECO "B91"]
[WhiteElo "2380"]
[BlackElo "2362"]
[Annotator "TA"]
[PlyCount "109"]
[EventDate "2022.09.20"]
[EventType "team-tourn"]
[EventCountry "SRB"]
[SourceTitle "playchess.com"]
[Source "ChessBase"]
[SourceQuality "1"]
[TimeControl "40/5400+30:1800+30"]

{[%evp 15,109,10,10,18,10,27,22,12,19,9,20,0,0,16,25,22,29,17,26,15,0,0,4,0,16,0,0,0,0,0,0,0,0,0,0,0,7,-31,-23,-30,-15,-15,-20,-56,-52,-54,-54,-178,-177,-135,-57,-83,-83,-126,-118,-133,-126,-172,-172,-172,-164,-164,-110,-110,-119,-95,-83,-83,-83,-83,-83,-83,-83,-83,-83,-83,-83,-83,-83,-83,-83,-83,-83,-83,-83,-83,-83,-83,-83,-83,-83,-83,0,-86,0,-83]} 1. e4 {[%emt 0:05:55]} c5 {[%emt 0:00:28]} 2. Nf3 {[%emt 0:00:05]} d6 {[%emt 0:00:10]} 3. d4 {[%emt 0:00:02]} cxd4 {[%emt 0:00:18]} 4. Nxd4 {[%emt 0:00:06]} Nf6 {[%emt 0:00:13]} 5. Nc3 {[%emt 0:00:03]} a6 {[%emt 0:00:11]} 6. g3 {[%emt 0:00:06]} e5 {[%emt 0:00:43]} 7. Nde2 {[%emt 0:00:03]} Be7 {[%emt 0:03:22]} 8. Bg2 {[%emt 0:00:05]} b5 {[%emt 0:03:29]} 9. Nd5 {[%emt 0:03:49] B91: Sicilian Najdorf: 6 g3.} Nxd5 {[%emt 0:01:05]} 10. Qxd5 {[%emt 0:00:05]} Ra7 {[%emt 0:00:06]} 11. Be3 {[%emt 0:00:30]} Rb7 {[%emt 0:00:05]} 12. O-O {[%emt 0:02:14]} Nd7 {[%emt 0:01:39][%cal Bb8d7,Bd7f6,Bf6g4][%mdl 32]} 13. Qd2 {[%emt 0:02:09]} Nf6 {[%emt 0:05:42] [#]} 14. Bg5 $146 {[%emt 0:11:05]} ({Predecessor:} 14. Nc3 Be6 15. Bg5 O-O 16. Rfd1 b4 17. Bxf6 Bxf6 18. Nd5 Bg5 19. Qd3 Rb5 20. h4 {½-½ (53) Chukavin,K (2370)-Yuffa,D (2556) Riga 2021}) 14... Ng4 {[%emt 0:38:26]} 15. Bxe7 {[%emt 0:07:52]} Kxe7 {[%emt 0:03:15]} 16. Nc3 {[%emt 0:18:54]} Nf6 {[%emt 0:02:18]} 17. f4 {[%emt 0:01:57]} Re8 {[%emt 0:12:52]} 18. Rad1 {[%emt 0:11:28]} b4 {[%emt 0:08:48]} 19. fxe5 {[%emt 0:15:33]} dxe5 {[%emt 0:00:08]} 20. Qf2 {[%emt 0:00:03] White threatens Qc5+ and mate. The board is on fire.} Qb6 {[%emt 0:04:03] Inhibits Qc5+.} 21. Qxb6 {[%emt 0:00:04]} Rxb6 {[%emt 0:00:02]} 22. Rxf6 {[%emt 0:00:05]} Rxf6 {[%emt 0:14:07]} 23. Nd5+ {[%emt 0:00:04][%mdl 64] Deflection, Double Attack} Kf8 {[%emt 0:00:00] Strongly threatening ...Rd6.} 24. Nxf6 {[%emt 0:01:03]} gxf6 $11 {[%emt 0:00:00][%mdl 4096] Endgame KRB-KRB} 25. Bf1 {[%emt 0:12:23]} Ke7 {[%emt 0:00:00]} 26. Rd5 {[%emt 0:01:04]} Bb7 {[%emt 0:00:00]} 27. Ra5 {[%emt 0:01:14]} Bxe4 {[%emt 0:00:00]} 28. Rxa6 {[%emt 0:00:16]} Rc8 {[%emt 0:00:00]} 29. Rb6 {[%emt 0:03:22]} Rxc2 {[%emt 0:00:00]} ({Of course not} 29... Bxc2 30. Rxb4 Bg6 31. a4 $14) 30. Rxb4 {[%emt 0:00:05]} Bd5 {[%emt 0:00:00] Hoping for ...e4.} 31. Bd3 {[%emt 0:01:49] [#] Inhibits e4.} (31. a4 $15) 31... Rg2+ $1 $19 {[%emt 0:02:01]} 32. Kf1 {[%emt 0:00:04]} Rd2 {[%emt 0:00:09]} (32... Rxh2 $17 33. a4 Kd6) 33. Bxh7 {[%emt 0:01:13]} Rxh2 {[%emt 0:00:28]} 34. Bf5 {[%emt 0:01:17]} Bxa2 {[%emt 0:03:22]} 35. Rb7+ {[%emt 0:00:13] [#]} Kf8 $1 {[%emt 0:00:00]} 36. Be4 {[%emt 0:00:41]} (36. Rb8+ $17 Kg7 37. b4) 36... Bc4+ {[%emt 0:00:00]} 37. Kg1 {[%emt 0:00:12]} Re2 {[%emt 0:00:00]} 38. Bf3 {[%emt 0:00:43]} Re3 {[%emt 0:00:00]} (38... Rd2 $19 {aiming for ...f5.} 39. Rb4 Bd3) 39. Rb8+ $17 {[%emt 0:00:10]} Ke7 {[%emt 0:00:16]} 40. Kf2 {[%emt 0:00:03]} Rb3 {[%emt 0:00:19]} 41. Rxb3 {[%emt 0:30:07]} Bxb3 {[%emt 0:30:05] KB-KB} 42. Ke3 {[%emt 0:00:20]} f5 {[%emt 0:00:29]} 43. Be2 {[%emt 0:02:06]} Kd6 {[%emt 0:00:00]} 44. Bd3 {[%emt 0:00:00]} Be6 {[%emt 0:00:00]} 45. Bc2 {[%emt 0:00:00]} Kc5 {[%emt 0:00:00]} 46. Bd1 {[%emt 0:00:00]} Kb4 {[%emt 0:00:00]} 47. Bc2 {[%emt 0:00:00]} f6 {[%emt 0:00:00]} 48. Bd1 {[%emt 0:00:00]} Bb3 {[%emt 0:00:00]} 49. Bh5 {[%emt 0:00:00]} Bd5 {[%emt 0:00:00] ...Kb3 is the strong threat.} 50. Bd1 {[%emt 0:00:00]} Be4 {[%emt 0:00:00]} 51. Kd2 {[%emt 0:00:00]} Bb1 {[%emt 0:00:00]} 52. Ke3 {[%emt 0:00:00]} Kc4 {[%emt 0:00:00]} 53. Ba4 {[%emt 0:00:00]} Kb4 {[%emt 0:00:00]} 54. Bd1 {[%emt 0:00:00]} Kc4 {[%emt 0:00:00]} 55. Ba4 $1 {[%emt 0:00:00] Weighted Error Value: White=0.08 (flawless) /Black=0.08 (flawless)} 1/2-1/2

[Event "1st Serbian League 2022"]
[Site "Vrnjacka Banja"]
[Date "2022.09.26"]
[Round "7.4"]
[White "Rajkovic, Mladen"]
[Black "Saric, Sinisa"]
[Result "1/2-1/2"]
[ECO "B01"]
[WhiteElo "2335"]
[BlackElo "2372"]
[Annotator "TA"]
[PlyCount "73"]
[EventDate "2022.09.20"]
[EventType "team-tourn"]
[EventCountry "SRB"]
[SourceTitle "playchess.com"]
[Source "ChessBase"]
[SourceQuality "1"]
[TimeControl "40/5400+30:1800+30"]

{[%evp 11,73,26,39,20,20,14,22,17,16,-12,0,0,18,0,0,0,0,0,0,0,46,0,25,20,25,18,25,22,33,25,24,23,78,0,0,0,0,-54,-54,-39,-44,-71,-16,-77,0,0,0,-7,-7,-3,0,0,0,-3,-3,-5,-5,-75,-89,-43,-47,-37,-12,-34]} 1. e4 {[%emt 0:07:15]} d5 {[%emt 0:00:24]} 2. exd5 {[%emt 0:00:06]} Qxd5 {[%emt 0:00:07]} 3. Nc3 {[%emt 0:00:04]} Qa5 {[%emt 0:00:09]} 4. d4 {[%emt 0:00:07]} Nf6 {[%emt 0:00:06]} 5. Nf3 {[%emt 0:00:08]} Bf5 {[%emt 0:00:15]} 6. Bc4 {[%emt 0:00:15]} e6 {[%emt 0:00:14]} 7. Bd2 {[%emt 0:00:09][%cal Oc3d5] [#] Threatens to win with Nd5! B01: Scandinavian Defence.} Bb4 $1 {[%emt 0:00:16][%mdl 4] is more profitable than 7...c6 at the moment.} 8. a3 {[%emt 0:05:25]} Bxc3 {[%emt 0:00:11]} 9. Bxc3 {[%emt 0:00:06]} Qb6 {[%emt 0:00:06]} 10. b3 {[%emt 0:06:30]} Nc6 {[%emt 0:07:59]} 11. O-O {[%emt 0:14:50]} O-O {[%emt 0:03:18]} 12. Qe2 {[%emt 0:11:44] [#]} Bg4 $146 {[%emt 0:15:07]} ({Predecessor:} 12... Be4 13. Rad1 Rad8 14. Ng5 Bd5 15. Bd3 h6 16. Nh3 Kh8 17. Qe3 Ne7 18. Nf4 Nf5 19. Bxf5 exf5 {0-1 (68) Mekhitarian,K (2545)-Zelbel,P (2440) Chess.com INT 2018}) 13. h3 {[%emt 0:09:08]} Bxf3 {[%emt 0:05:34]} 14. Qxf3 {[%emt 0:00:06]} Rad8 {[%emt 0:00:10]} 15. Rad1 {[%emt 0:01:50]} Rd6 {[%emt 0:03:37]} (15... Nxd4 $11 {is superior.} 16. Rxd4 Rxd4) 16. Rd2 {[%emt 0:13:01]} (16. d5 $14 exd5 17. Bxd5) 16... Rfd8 {[%emt 0:01:55][%cal Rc6d4]} 17. Rfd1 {[%emt 0:00:09]} Nxd4 {[%emt 0:11:59]} 18. Rxd4 {[%emt 0:00:50]} Rxd4 {[%emt 0:00:06]} 19. Rxd4 {[%emt 0:00:03]} Rxd4 {[%emt 0:00:07]} 20. Bxd4 {[%emt 0:00:03]} Qxd4 {[%emt 0:00:09]} 21. Qxb7 $11 {[%emt 0:00:04][%mdl 4096] Endgame White threatens Qb8+ and mate. KQB-KQN} g5 {[%emt 0:00:17]} (21... g6 $11 {keeps the balance.}) 22. Qf3 {[%emt 0:11:33]} (22. Qb8+ $16 Kg7 23. Qxc7) 22... Kg7 {[%emt 0:05:25]} 23. a4 {[%emt 0:02:09]} h5 {[%emt 0:05:14]} 24. Qe3 {[%emt 0:05:32]} (24. Bd3 $11) 24... Qxe3 $15 {[%emt 0:04:09]} 25. fxe3 {[%emt 0:00:01] KB-KN} Ne4 {[%emt 0:00:13]} 26. Bd3 {[%emt 0:02:08] [#]} Nc5 {[%emt 0:08:19]} ({Black should play} 26... Nc3 $1 $17) 27. Kf2 {[%emt 0:01:07]} (27. Bb5 $11) 27... f5 {[%emt 0:04:44]} (27... Nxd3+ $17 28. cxd3 Kf6) 28. Ke2 $11 {[%emt 0:01:16]} Kf6 {[%emt 0:02:37]} 29. a5 {[%emt 0:00:01]} e5 {[%emt 0:08:13]} 30. b4 {[%emt 0:00:39]} Ne6 {[%emt 0:03:28]} 31. Bc4 {[%emt 0:02:28]} Nd8 {[%emt 0:02:46]} 32. e4 {[%emt 0:04:24]} f4 {[%emt 0:01:01]} 33. c3 {[%emt 0:02:00]} g4 {[%emt 0:01:21]} 34. hxg4 {[%emt 0:00:39]} (34. Bd5 $11 {remains equal.}) 34... hxg4 $17 {[%emt 0:00:02]} 35. Bd5 {[%emt 0:00:48]} (35. Kf2 $17) 35... Ke7 $15 {[%emt 0:03:56]} 36. g3 {[%emt 0:00:43]} Kd6 {[%emt 0:03:34]} ({Don't do} 36... fxg3 37. Kf1 $14) 37. c4 {[%emt 0:01:39] Weighted Error Value: White=0.20 (precise) /Black=0.12 (very precise)} 1/2-1/2

[Event "1st Serbian League 2022"]
[Site "Vrnjacka Banja"]
[Date "2022.09.26"]
[Round "7.5"]
[White "Milosevic, Milos"]
[Black "Mijailovic, Zoran"]
[Result "1/2-1/2"]
[ECO "C24"]
[WhiteElo "2379"]
[BlackElo "2345"]
[Annotator "ChessBase"]
[PlyCount "46"]
[EventDate "2022.09.20"]
[EventType "team-tourn"]
[EventCountry "SRB"]
[SourceTitle "playchess.com"]
[Source "ChessBase"]
[SourceQuality "1"]
[TimeControl "40/5400+30:1800+30"]

1. e4 {[%emt 0:00:13]} e5 {[%emt 0:00:18]} 2. Bc4 {[%emt 0:00:53]} Nf6 {[%emt 0:00:40]} 3. d3 {[%emt 0:00:04]} c6 {[%emt 0:00:51]} 4. Nf3 {[%emt 0:00:15]} Be7 {[%emt 0:01:24]} 5. O-O {[%emt 0:02:19]} d6 {[%emt 0:01:43]} 6. c3 {[%emt 0:00:19]} O-O {[%emt 0:02:43]} 7. Nbd2 {[%emt 0:00:14]} Nbd7 {[%emt 0:01:12]} 8. Re1 {[%emt 0:02:01]} Nc5 {[%emt 0:14:10]} 9. b4 {[%emt 0:00:43]} Ne6 {[%emt 0:00:22]} 10. a4 {[%emt 0:00:57]} Qc7 {[%emt 0:08:38]} 11. Bb3 {[%emt 0:02:35]} a5 {[%emt 0:07:26]} 12. bxa5 {[%emt 0:00:50]} Rxa5 {[%emt 0:02:18]} 13. Nc4 {[%emt 0:00:10]} Ra6 {[%emt 0:00:30]} 14. Ba3 {[%emt 0:05:12]} b5 {[%emt 0:06:07]} 15. Ne3 {[%emt 0:03:40]} bxa4 {[%emt 0:00:51]} 16. Bc4 {[%emt 0:00:06]} Ra7 {[%emt 0:01:43]} 17. Nf5 {[%emt 0:00:06]} c5 {[%emt 0:05:28]} 18. d4 {[%emt 0:06:27]} Rd8 {[%emt 0:00:52]} 19. Nxe7+ {[%emt 0:02:18]} Qxe7 {[%emt 0:00:06]} 20. Qd2 {[%emt 0:06:22]} Qc7 {[%emt 0:43:08]} 21. Rac1 {[%emt 0:15:13]} h6 {[%emt 0:00:00]} 22. h3 {[%emt 0:07:23]} Nf4 {[%emt 0:00:00]} 23. Qe3 {[%emt 0:03:07]} Ra8 {[%emt 0:00:00]} 1/2-1/2

[Event "1st Serbian League 2022"]
[Site "Vrnjacka Banja"]
[Date "2022.09.26"]
[Round "7.6"]
[White "Todorovic, Jovan"]
[Black "Markovic, Miroslav"]
[Result "1/2-1/2"]
[ECO "B13"]
[WhiteElo "2350"]
[BlackElo "2275"]
[Annotator "TA"]
[PlyCount "40"]
[EventDate "2022.09.20"]
[EventType "team-tourn"]
[EventCountry "SRB"]
[SourceTitle "playchess.com"]
[Source "ChessBase"]
[SourceQuality "1"]
[TimeControl "40/5400+30:1800+30"]

{[%evp 29,30,0,0]} 1. e4 {[%emt 0:00:32]} d5 {[%emt 0:00:23]} 2. exd5 {[%emt 0:00:11]} Nf6 {[%emt 0:00:03]} 3. c4 {[%emt 0:00:24]} c6 {[%emt 0:00:15]} 4. d4 {[%emt 0:00:16]} cxd5 {[%emt 0:00:08]} 5. Nc3 {[%emt 0:00:17]} Nc6 {[%emt 0:01:33]} 6. cxd5 {[%emt 0:00:30]} Nxd5 {[%emt 0:01:14]} 7. Nf3 {[%emt 0:00:28]} Bg4 {[%emt 0:06:36]} 8. Qb3 {[%emt 0:01:22]} Bxf3 {[%emt 0:01:12]} 9. gxf3 {[%emt 0:00:38]} e6 {[%emt 0:03:59]} 10. Qxb7 {[%emt 0:02:26]} Nxd4 {[%emt 0:00:04]} 11. Bb5+ {[%emt 0:00:27]} Nxb5 {[%emt 0:00:13]} 12. Qc6+ {[%emt 0:00:47]} Ke7 {[%emt 0:00:03]} 13. Qxb5 {[%emt 0:00:24]} Qd7 {[%emt 0:03:28]} 14. Nxd5+ {[%emt 0:04:07]} Qxd5 {[%emt 0:00:42]} 15. Qxd5 {[%emt 0:00:53]} exd5 {[%emt 0:00:01] [#]} {Predecessor:} 16. O-O $146 {B13: Caro-Kann: Exchange Variation and Panov-Botvinnik Attack.} Ke6 17. Re1+ Kf5 18. Rd1 Ke6 19. Re1+ Kf5 20. Rd1 Ke6 {½-½ (20) Lintchevski,D (2567)-Kokarev,D (2579) Khanty-Mansiysk 2021} 1/2-1/2

[Event "1st Serbian League 2022"]
[Site "Vrnjacka Banja"]
[Date "2022.09.26"]
[Round "7.7"]
[White "Budisavljevic, Luka"]
[Black "Ter-Sahakyan, Samvel"]
[Result "1/2-1/2"]
[ECO "D38"]
[WhiteElo "2524"]
[BlackElo "2630"]
[Annotator "TA"]
[PlyCount "45"]
[EventDate "2022.09.20"]
[EventType "team-tourn"]
[EventCountry "SRB"]
[SourceTitle "playchess.com"]
[Source "ChessBase"]
[SourceQuality "1"]
[TimeControl "40/5400+30:1800+30"]

{[%evp 10,32,12,13,23,25,22,15,17,10,10,8,10,4,9,14,18,11,11,18,10,12,15,14,20]} 1. Nf3 {[%emt 0:00:21]} d5 {[%emt 0:00:06]} 2. d4 {[%emt 0:00:10][%cal Bd2d4,Bd4c5][%mdl 32]} Nf6 {[%emt 0:00:07]} 3. c4 {[%emt 0:00:11]} e6 {[%emt 0:00:06]} 4. Nc3 {[%emt 0:00:12]} Bb4 {[%emt 0:00:38]} 5. Qb3 {[%emt 0:00:15]} c5 {[%emt 0:05:04]} 6. dxc5 {[%emt 0:00:43]} Nc6 {[%emt 0:00:09] [#] White must now prevent ...d4. D38: Queen's Gambit Declined: Ragozin Defence (4 Nf3 Bb4).} 7. Bg5 {[%emt 0:00:18]} Qa5 $1 {[%emt 0:01:48] Threatens to win with ...d4. The main line 7...Qa5 scores better than 7...dxc4.} 8. Bxf6 {[%emt 0:00:11] The position is equal.} dxc4 {[%emt 0:00:19]} 9. Qxc4 {[%emt 0:00:07]} gxf6 {[%emt 0:00:03]} 10. Rc1 {[%emt 0:00:25]} Qxc5 {[%emt 0:02:23]} 11. Qh4 {[%emt 0:01:31]} Ke7 {[%emt 0:00:53]} 12. g3 {[%emt 0:00:51]} Bxc3+ {[%emt 0:02:59]} 13. Rxc3 {[%emt 0:00:39]} Qb4 {[%emt 0:00:35]} 14. Qxb4+ {[%emt 0:02:38]} Nxb4 {[%emt 0:00:30]} 15. a3 {[%emt 0:03:41]} Nd5 {[%emt 0:11:43]} 16. Rc2 {[%emt 0:00:13]} Bd7 {[%emt 0:00:00] [#] A balanced but interesting game.  Weighted Error Value: White=0.00 (flawless) /Black=0.01 (flawless)} {Predecessor:} 17. Bg2 $146 Nb6 18. Rc7 Rab8 19. Kd2 Nd5 20. Rc5 b6 21. Rc4 Bb5 22. Rh4 Rhd8 23. Nd4 {0-1 (39) Mamedyarov,S (2759)-Ding,L (2806) chess24.com INT 2022} 1/2-1/2